Cogmind - Beta 11 X8 @@@ ROGUE MODE // 2022.01.04 @ 01:33:40 Player: maxwell Result: Destroyed by D-53 Grenadier with Mini Grenade Launcher Performance ------------- Evolutions (0) 0 Regions Visited (4) 800 Robots Destroyed (37) 185 Value Destroyed (527) 527 Prototype IDs (0) 0 Alien Tech Used (0) 0 Bonus (-48) -48 TOTAL SCORE: 1464 Bonus ------- Friendly Fire -48 Cogmind --------- Core Integrity 0/250 Matter 270/300 Energy 220/250 System Corruption 3% Temperature Cool (6) Movement Core (800) Ox15 Location -9/Mines Parts ------- > --- POWER (1) -------- (None) > --- PROPULSION (2) --- (None) > --- UTILITY (2) ------ High-capacity Storage Unit Medium Battery > --- WEAPON (2) ------- Rocket Launcher > --- INVENTORY (20) --- Ion Engine Light Treads Compact Wheel Compact Wheel High-capacity Storage Unit Medium Laser Medium Laser Small Laser Assault Rifle Assault Rifle Assault Rifle Assault Rifle Assault Rifle Light Cannon Light Cannon EMP Blaster Rocket Launcher Rocket Launcher Mace Peak State ------------ > --- POWER ------------ Ion Engine > --- PROPULSION ------- Wheel Wheel > --- UTILITY ---------- High-capacity Storage Unit Medium Battery > --- WEAPON ----------- Light Cannon EMP Blaster > --- INVENTORY -------- Ion Engine Light Treads Compact Wheel Compact Wheel EM Pulse Gun Medium Laser Medium Laser Small Laser Assault Rifle Assault Rifle Assault Rifle Assault Rifle Assault Rifle Light Cannon Light Cannon EMP Blaster Rocket Launcher Rocket Launcher Rocket Launcher Mace [Rating: 10] Favorites ----------- Power Ion Engine Engine Ion Engine Propulsion Light Treads Treads Light Treads Wheel Wheel Utility High-capacity Storage Unit Device Heat Sink Storage High-capacity Storage Unit Processor Targeting Computer Weapon EM Pulse Gun Energy Gun EM Pulse Gun Ballistic Gun Light Assault Rifle Ballistic Cannon Light Cannon Launcher EMP Blaster Build | -11 -10 -10 -10 -9 ------- Run | Scr Mat Min Exi Min Slots Evolved . | . . . . . Power . | . . . . . Propulsion . | . . . . . Utility . | . . . . . Weapon . | . . . . . Parts Attached 25 | 6 13 5 . 1 Power 2 | 1 1 . . . Engine 2 | 1 1 . . . Core . | . . . . . Reactor . | . . . . . Propulsion 7 | 2 2 3 . . Treads 4 | 2 2 . . . Leg . | . . . . . Wheel 3 | . . 3 . . Hover . | . . . . . Flight . | . . . . . Utility 5 | 1 3 1 . . Device 1 | . 1 . . . Storage 3 | 1 1 1 . . Processor 1 | . 1 . . . Hackware . | . . . . . Protection . | . . . . . Artifact . | . . . . . Weapon 11 | 2 7 1 . 1 Energy Gun 5 | . 5 . . . Energy Cannon . | . . . . . Ballistic Gun 2 | 2 . . . . Ballistic Cannon 1 | . 1 . . . Launcher 3 | . 1 1 . 1 Special Weapon . | . . . . . Impact Weapon . | . . . . . Slashing Weapon . | . . . . . Piercing Weapon . | . . . . . Special Melee Weapon . | . . . . . Unidentified Prototypes . | . . . . . Corrupted Parts 1 | . 1 . . . System Corruption 1 | . 1 . . . Parts Lost 10 | . 3 2 . 5 Power 2 | . 1 . . 1 Propulsion 4 | . 1 1 . 2 Utility 1 | . . 1 . . Weapon 3 | . 1 . . 2 Highest Loss Streak 5 | . 2 1 . 5 Average Slot Usage (%) 91 | . 87 96 100 71 Engine 13 | . 14 14 14 . Treads 16 | . 22 7 . . Wheel 8 | . . 20 28 14 Device 1 | . 2 . . . Storage 15 | . 14 15 28 28 Processor 6 | . 6 9 . . Energy Gun 13 | . 15 12 . . Ballistic Gun 4 | . 7 . . . Ballistic Cannon 7 | . 2 14 14 . Launcher 1 | . . 1 14 28 Naked Turns . | . . . . . Heaviest Build 54 | 10 51 54 54 . Greatest Support 40 | 40 40 40 20 . Greatest Overweight (x) 4 | 3 2 4 2 . Average Overweight (x) 1 | . 1 2 2 . Largest Inventory Capacity 20 | 8 20 20 20 20 Average Capacity 19 | 7 19 20 20 20 Most Carried 20 | 1 20 20 20 20 Average Carried 13 | . 9 19 19 19 Final Capacity 20 | 8 20 20 20 20 Final Carried 20 | 1 19 20 20 19 Class Distribution -------------------- 100% | Mutant Dominant Class ---------------- Mutant | -10/Materials Mutant | -10/Mines Mutant | -10/Exiles Mutant | -9/Mines Resources | -11 -10 -10 -10 -9 ----------- Run | Scr Mat Min Exi Min Matter Collected 571 | 205 245 111 . 10 Remotely . | . . . . . Salvage Created 885 | . 616 175 . 94 Parts 73 | . 40 22 . 11 Haulers Intercepted 2 | . 2 . . . Recyclers Shooed . | . . . . . Parts Field Recycled . | . . . . . Retrieved Matter . | . . . . . Parts Self-Destructed . | . . . . . Prevented . | . . . . . Kills | -11 -10 -10 -10 -9 ------- Run | Scr Mat Min Exi Min Combat Hostiles Destroyed 29 | . 13 11 . 5 Guns 19 | . 11 8 . . Cannons 4 | . 1 3 . . AOE 6 | . 1 . . 5 Classes Destroyed 8 | . 5 1 . 2 Builder 1 | . . . . 1 Tunneler 1 | . . 1 . . Hauler 2 | . 2 . . . Recycler 1 | . 1 . . . Watcher 3 | . 3 . . . Swarmer 23 | . 8 11 . 4 Grunt 5 | . 5 . . . Duelist 1 | . . . . 1 Best Kill Streak 6 | . 5 3 . 6 Combat Bots Only 5 | . 4 3 . 5 Max Kills in Single Turn 2 | . 1 1 . 2 Gunslinging . | . . . . . Exploded 2 | . 1 . . 2 Melee . | . . . . . Uniques/NPCs Destroyed . | . . . . . Combat | -11 -10 -10 -10 -9 -------- Run | Scr Mat Min Exi Min Damage Taken 1244 | . 697 253 . 294 Core 261 | . 125 73 . 63 Absorbed by Shields . | . . . . . Core Remaining (%) 100 | 100 . . . . Volleys Fired 79 | . 54 20 . 5 Largest 2 | . 2 2 . 2 Hottest 85 | . 85 85 . 66 Shots Fired 151 | . 107 38 . 6 Gun 119 | . 101 18 . . Cannon 25 | . 5 20 . . Launcher 7 | . 1 . . 6 Special . | . . . . . Kinetic 65 | . 45 20 . . Thermal 23 | . 5 18 . . Explosive 4 | . 1 . . 3 Electromagnetic 59 | . 56 . . 3 Robot Hit Streak 11 | . 11 9 . 2 Robot Miss Streak 5 | . 5 4 . 1 Penetration Max . | . . . . . Secondary Targets 1 | . 1 . . . Max Gunslinging Chain 1 | . 1 . . . Shots Hit Robots 87 | . 68 16 . 3 Core Hits 54 | . 28 12 . 14 Critical Kills . | . . . . . Critical Parts Destroyed . | . . . . . Critical Strikes 3 | . 1 2 . . Burn 2 | . . 2 . . Corrupt 1 | . 1 . . . Melee Attacks . | . . . . . Impact . | . . . . . Slashing . | . . . . . Piercing . | . . . . . Sneak Attacks . | . . . . . Combat Hostiles . | . . . . . Follow-up Attacks . | . . . . . Damage Inflicted 1648 | . 841 275 . 532 Guns 885 | . 734 151 . . Cannons 155 | . 56 99 . . Explosions 577 | . 45 . . 532 Melee . | . . . . . Ramming 31 | . 6 25 . . Kinetic 398 | . 299 99 . . Thermal 357 | . 83 151 . 123 Explosive 283 | . . . . 283 Electromagnetic 579 | . 453 . . 126 Impact . | . . . . . Slashing . | . . . . . Piercing . | . . . . . Highest Corruption 3 | . 1 3 3 3 Average Corruption 1 | . 1 1 3 3 Corruption Purged . | . . . . . Effects 9 | . 1 4 4 . Message Errors 5 | . 1 2 2 . Energy Discharges 3 | . . 2 1 . Data Loss (minor) 1 | . . . 1 . Overload Shots . | . . . . . Overflow Damage 26 | . . . . 26 Projectiles . | . . . . . Explosions 26 | . . . . 26 Melee . | . . . . . Knockbacks 2 | . 1 1 . . Impact . | . . . . . Kinetic 2 | . 1 1 . . Secondary . | . . . . . Self-Inflicted Damage 148 | . 30 12 . 106 Shots 6 | . 1 . . 5 Rammed 3 | . 1 2 . . Targets Rammed 3 | . 1 2 . . Kicked . | . . . . . Crushed . | . . . . . Highest Temperature 144 | . 132 144 . 15 Average Temperature 45 | . 41 56 . 10 Received Heat Transfer 174 | . 162 . . 12 Siege Activations . | . . . . . Robots Corrupted 1 | . 1 . . . Combat Hostiles . | . . . . . Parts Fried 4 | . 4 . . . Impact Corruptions . | . . . . . Robots Melted . | . . . . . Combat Hostiles . | . . . . . Parts Melted . | . . . . . Heat Transferred 866 | . 111 555 . 200 Parts Sabotaged . | . . . . . Parts Stolen . | . . . . . Parts Stripped . | . . . . . Power Chain Reactions 3 | . 1 . . 2 Missiles Intercepted . | . . . . . Alert | -11 -10 -10 -10 -9 ------- Run | Scr Mat Min Exi Min Peak Influence 171 | . 171 144 . 75 Initial 39 | . . 39 . . Average 69 | . 69 79 . 57 Maximum Alert Level . | . . . . . Low Security (%) 100 | 100 100 100 . 100 Level 1 . | . . . . . Level 2 . | . . . . . Level 3 . | . . . . . Level 4 . | . . . . . Level 5 . | . . . . . High Security . | . . . . . Max Security . | . . . . . Squads Dispatched 4 | . 4 . . . Investigation 1 | . 1 . . . Extermination . | . . . . . Reinforcement 3 | . 3 . . . Assault . | . . . . . Garrison . | . . . . . Intercept . | . . . . . Construction Impeded . | . . . . . Haulers Reinforced . | . . . . . Active Scanning Responses . | . . . . . Cargo Convoy Interrupts . | . . . . . Stealth | -11 -10 -10 -10 -9 --------- Run | Scr Mat Min Exi Min Distress Signals 2 | . 2 . . . Communications Jammed . | . . . . . Distress Signals . | . . . . . Times Spotted 45 | . 28 10 . 7 Peak Tracking Total 7 | . 7 3 . 4 Tactical Retreats 2 | . 2 . . . Traps | -11 -10 -10 -10 -9 ------- Run | Scr Mat Min Exi Min Traps Triggered . | . . . . . Indirectly . | . . . . . Trap Hack Attempts . | . . . . . Triggered . | . . . . . Disarmed . | . . . . . Reprogrammed . | . . . . . Reused . | . . . . . Traps Extracted . | . . . . . Installed . | . . . . . Triggered 1 | . 1 . . . Machines | -11 -10 -10 -10 -9 ---------- Run | Scr Mat Min Exi Min Machines Disabled 1 | . 1 . . . Max in Single Turn 1 | . 1 . . . Machines Sabotaged . | . . . . . Garrisons Compromised . | . . . . . Overloaded Fab Kills . | . . . . . Hacking | -11 -10 -10 -10 -9 --------- Run | Scr Mat Min Exi Min Machines Accessed 4 | . 3 . 1 . Terminals 3 | . 3 . . . Fabricators . | . . . . . Repair Stations . | . . . . . Recycling Units . | . . . . . Scanalyzers . | . . . . . Garrison Access . | . . . . . Total Hacks 12 | . 11 . 1 . Successful 2 | . 1 . 1 . Failed 10 | . 10 . . . Catastrophic 2 | . 2 . . . Database Lockouts . | . . . . . Manual 11 | . 11 . . . Terminals 11 | . 11 . . . Fabricators . | . . . . . Repair Stations . | . . . . . Recycling Units . | . . . . . Scanalyzers . | . . . . . Garrison Access . | . . . . . Terminal Hacks 2 | . 1 . 1 . Record 1 | . . . 1 . Robot Analysis 1 | . 1 . . . Fabricator Hacks . | . . . . . Repair Station Hacks . | . . . . . Recycling Unit Hacks . | . . . . . Scanalyzer . | . . . . . Garrison Access Hacks . | . . . . . Unauthorized Hacks . | . . . . . Terminals . | . . . . . Fabricators . | . . . . . Repair Stations . | . . . . . Recycling Units . | . . . . . Scanalyzers . | . . . . . Garrison Access . | . . . . . Data Cores Recovered . | . . . . . Used . | . . . . . Hacking Detections 3 | . 3 . . . Full Trace Events 1 | . 1 . . . Feedback Events . | . . . . . Feedback Blocked . | . . . . . Robot Schematics Acquired . | . . . . . Robots Built . | . . . . . Authchips . | . . . . . Time . | . . . . . Total Robot Build Rating . | . . . . . Part Schematics Acquired . | . . . . . Parts Built . | . . . . . Authchips . | . . . . . Time . | . . . . . Total Part Build Rating . | . . . . . Parts Repaired . | . . . . . Time . | . . . . . Parts Recycled . | . . . . . Recycled Matter . | . . . . . Retrieved Matter . | . . . . . Retrieved Components . | . . . . . Parts Scanalyzed . | . . . . . Part Schematics Acquired . | . . . . . Parts Damaged . | . . . . . Bothacking | -11 -10 -10 -10 -9 ------------ Run | Scr Mat Min Exi Min Used RIF Installer . | . . . . . Robots Hacked . | . . . . . Non-combat . | . . . . . Combat . | . . . . . Robot Hacks Applied . | . . . . . Relay Couplers Released . | . . . . . Fabnet Peak Effective % . | . . . . . Robots Rewired . | . . . . . Allies Hacked . | . . . . . Hacks Repelled . | . . . . . Allies | -11 -10 -10 -10 -9 -------- Run | Scr Mat Min Exi Min Total Allies . | . . . . . Largest Group . | . . . . . Highest-Rated Group . | . . . . . Highest-Rated Ally . | . . . . . Total Orders . | . . . . . Ally Attacks . | . . . . . Total Damage . | . . . . . Kills . | . . . . . Allies Corrupted . | . . . . . Allies Melted . | . . . . . Intel | -11 -10 -10 -10 -9 ------- Run | Scr Mat Min Exi Min Robot Analysis Total 1 | . 1 . . . Derelict Logs Recovered 3 | . . 3 . . Drone Launches . | . . . . . Drone Recoveries . | . . . . . Exploration | -11 -10 -10 -10 -9 ------------- Run | Scr Mat Min Exi Min Turns Passed 2673 | 86 1563 790 223 11 Spaces Moved 1299 | 51 501 545 202 . Core 16 | 16 . . . . Treads 592 | 35 501 56 . . Legs . | . . . . . Wheels 691 | . . 489 202 . Hover . | . . . . . Flight . | . . . . . Fastest Speed 50 | 50 160 110 110 . Average Speed 177 | 150 259 128 110 . Slowest Speed 320 | 200 320 240 110 . Overloaded Moves . | . . . . . Propulsion Burnouts . | . . . . . Robots Hopped . | . . . . . Cave-ins Triggered . | . . . . . Exploration Rate (%) 46 | 4 75 95 54 4 Regions Visited 4 Branch Regions 3 Pre-discovered Areas 2 | . . 1 1 . Known Exits Taken . | . . . . . Unknown Exits Taken 4 | 1 1 1 1 . Scrap Searched 1 | . . 1 . . Spaces Dug 10 | . 10 . . . Terrain Destroyed 47 | . 16 . . 31 Melee . | . . . . . Projectile . | . . . . . AOE 47 | . 16 . . 31 Terrain Rammed . | . . . . . Walls Destroyed . | . . . . . Machines Disabled . | . . . . . Actions | -11 -10 -10 -10 -9 --------- Run | Scr Mat Min Exi Min Total 1523 | 57 661 596 203 6 Wait 90 | . 66 24 . . Move 1295 | 50 500 544 201 . Hop . | . . . . . Pick Up 25 | 1 23 . 1 . Fast Attach 14 | 6 6 2 . . Attach 7 | . 5 1 . 1 Detach 1 | . . 1 . . Swap 4 | . 2 2 . . Drop 5 | . 4 . 1 . Fire 79 | . 54 20 . 5 Melee . | . . . . . Ram 2 | . . 2 . . Kick . | . . . . . Crush 1 | . 1 . . . Escape Stasis . | . . . . . Rewire . | . . . . . Trap . | . . . . . Miscellaneous . | . . . . . Route ------- -11/Scrapyard -10/Materials (discovered 3 exits: [*Mat x2] / [*Min]) -10/Mines (discovered 2 exits: [*Mat] / *Exi) -10/Exiles -9/Mines (discovered 1 exit: [*Mat]) History --------- Turn | Location | Event 16 | -11/Scrapyard | Discovered new exit (range 16) 87 | -11/Scrapyard | Entered Materials 318 | -10/Materials | Build established: Mutant 948 | -10/Materials | Discovered new exit (range 3) 1538 | -10/Materials | Discovered new exit (range 15) 1612 | -10/Materials | Discovered new exit (range 15) 1650 | -10/Materials | Entered Mines 1791 | -10/Mines | Core integrity fell below 50% 1873 | -10/Mines | Learned 2 Materials zone layouts 1951 | -10/Mines | Learned 2 Materials zone layouts 2098 | -10/Mines | Discovered new exit (range 5) 2395 | -10/Mines | Learned Materials garrison access intel 2407 | -10/Mines | Learned location of Storage (-8) 2436 | -10/Mines | Deemed a non-threat by the Exiles lab entrance 2436 | -10/Mines | Discovered new exit (range 5) 2440 | -10/Mines | Entered Exiles 2467 | -10/Exiles | Met 8R-AWN 2486 | -10/Exiles | Met EX-HEX 2534 | -10/Exiles | Met EX-DEC 2553 | -10/Exiles | Learned location of Zion (-7) 2654 | -10/Exiles | Discovered new exit (range 10) 2663 | -10/Exiles | Entered Mines 2664 | -9/Mines | Assembled infested the area 2669 | -9/Mines | Assisted by a Guerilla fighting off Assembled 2669 | -9/Mines | Discovered new exit (range 9) 2670 | -9/Mines | Core integrity fell below 20% 2674 | -9/Mines | Destroyed by D-53 Grenadier with Mini Grenade Launcher Last Messages --------------- 02668_ HV Slug penetrates S-10 Pest. 02668_ S-10 Pest suffers critical hit (Destroy). 02668_ HV Slug penetrates Wall. 02668_ HV Slug penetrates Earth. 02668_ S-10 Pest destroyed. 02668_ Ion Engine destroyed. 02668_ Destroyed Ion Engine. 02668_ U-05 Engineer destroyed. 02669_ A derelict emerges from the shadows: "You need to get out of here! I've been tracking a group of Assembled to figure out where they're coming from, and they're closing on this area, come on!" 02669_ C-30 ARC bursts open, deploying its payload. 02669_ D-53 Grenadier unfolds itself. 02669_ EXIT=FOUND 02670_ HV Slug penetrates Wall. 02670_ Chain reaction triggered in Corrupted Lgt. Ion Engine. 02672_ AX-DWT(h) destroyed. 02672_ EMP Blaster destroyed. 02672_ Wheel destroyed. 02673_ L-31 Rogue destroyed. Map ----- +----------------------------------------------------+ | ????????????????????????????????? | | ????????????????????????????????? | | ????????????????????????????????? | | ????????????????????????????????? | | ????????????????????????????????? | | ????????????????????????????????? | | ????????????????????????????????? | | ????????????????????????????????? | | ????????????????????????????????? | | ????????????????????????????????? | | ????????????????????????????????? | | ????????????????????????????????? | | ????????????????????????????????? | | ????????????????????????????????? | | ????????????????????????????????? | | ????????????????????????????????? | | ????????????????????????????????? | | ????????????????????????????????? | | ????????????????????????????????? | | ????????????????????????????????? | | ????????????????????????#######?? | | ???????????????????????## # # ##? | | ??????????????????????## #? | | ??????????????????????# [ # | | ??????????????????????# #? | | ??????????????????????# @ % # | | ??????????????????????# # | | ?????????????????????# # | | ?????????????????????## # | | ??????????????????????$ d # | | ?????????????????????##u# # | | ??????????????????????# ## %d # | | ??????????????????????#k?? / ## | | ??????????????????????# ?? < ? | | ??????????????????????#??? # | | ?????????????????????????? ### | | ?????????????????????????? g #?? | | ??????????????????????????# ##?? | | ???????????????????????????###??? | | ????????????????????????????????? | | ????????????????????????????????? | | | | | | | | | | | | | | | | | | | +----------------------------------------------------+ Best States ------------- Heat Dissipation 35 Energy Generation 10 Energy Capacity 400 Matter Stores 300 Matter Capacity 300 Sight Range 16 Terrain Scan Density 10 Evasion (%) 40 Targeting Accuracy 5 Recoil Reduction 2 Item Schematics ----------------- None Robot Schematics ------------------ None Fabricated ------------ Nothing Alien Tech Used ----------------- None Achievements -------------- None Challenges ------------ None Game ------ Seed CoordinationNeutronRefractor Manual? 0 Play Time 00:09:17 Cumulative 141.3 hours Start 2022.01.04 @ 01:17:59 End 2022.01.04 @ 01:33:40 Sessions 2 Manual Loads 0 Difficulty Rogue Special Mode None Game No. 242 Rogue 225 Adventurer 4 Explorer 13 Win Type - Total 8 Types 6/0/0/2/0/0/0/0/0 Lore% 64 Gallery% 83 Achievement% 68 Wizard Run 0 Options --------- ASCII 0 Keyboard 1 Movement Numpad Keybinds 0 Fullscreen 1 Font 18/SmallcapsGlow Map View 76x50 Tactical HUD 1 Map Filters NONE Filters NONE Steam 1 RUN: 7d45cef8-3418-4ace-a57f-8879faaddf79